[Event "Titled Tuesday Blitz April 4 Late 2023"]
[White "Kukula, Pawel"]
[Black "Wang, Alexander J"]
[WhiteFideId "1115081"]
[BlackFideId "30955270"]
[WhiteElo "2012"]
[BlackElo "2311"]
[Result "1-0"]
[Round "08"]
[TimeControl "180+2"]
[Date "2023.04.04"]
[WhiteClock "0:01:25"]
[BlackClock "0:00:31"]

1. Nc3 {[%clk 0:03:00]}  d5 {[%clk 0:02:59]} 2. e4 {[%clk 0:03:00]}  d4 {[%clk 0:02:57]} 3. Nce2 {[%clk 0:03:00]}  c5 {[%clk 0:02:57]} 4. Nf3 {[%clk 0:02:59]}  Nc6 {[%clk 0:02:56]} 5. Ng3 {[%clk 0:02:58]}  e6 {[%clk 0:02:50]} 6. Bb5 {[%clk 0:02:57]}  Bd7 {[%clk 0:02:49]} 7. O-O {[%clk 0:02:56]}  a6 {[%clk 0:02:49]} 8. Bxc6 {[%clk 0:02:55]}  Bxc6 {[%clk 0:02:50]} 9. d3 {[%clk 0:02:56]}  Bd6 {[%clk 0:02:50]} 10. Ne1 {[%clk 0:02:53]}  Ne7 {[%clk 0:02:44]} 11. f4 {[%clk 0:02:53]}  Qd7 {[%clk 0:02:40]} 12. Nf3 {[%clk 0:02:48]}  O-O-O {[%clk 0:02:35]} 13. e5 {[%clk 0:02:47]}  Bc7 {[%clk 0:02:35]} 14. Bd2 {[%clk 0:02:39]}  Kb8 {[%clk 0:02:34]} 15. b4 {[%clk 0:02:38]}  cxb4 {[%clk 0:02:28]} 16. Bxb4 {[%clk 0:02:38]}  Nd5 {[%clk 0:02:22]} 17. Bd2 {[%clk 0:02:38]}  h5 {[%clk 0:02:11]} 18. Ne4 {[%clk 0:02:37]}  f5 {[%clk 0:01:54]} 19. Nc5 {[%clk 0:02:24]}  Qe7 {[%clk 0:01:53]} 20. Nb3 {[%clk 0:02:24]}  Ne3 {[%clk 0:01:42]} 21. Bxe3 {[%clk 0:02:22]}  dxe3 {[%clk 0:01:43]} 22. Qe2 {[%clk 0:02:20]}  Bb6 {[%clk 0:01:41]} 23. c3 {[%clk 0:02:15]}  Qd7 {[%clk 0:01:33]} 24. d4 {[%clk 0:02:15]}  Qd5 {[%clk 0:01:12]} 25. Qxe3 {[%clk 0:02:13]}  Bb5 {[%clk 0:01:11]} 26. Rfc1 {[%clk 0:02:09]}  Rc8 {[%clk 0:01:11]} 27. Nbd2 {[%clk 0:02:02]}  Bc4 {[%clk 0:01:09]} 28. Nxc4 {[%clk 0:02:00]}  Rxc4 {[%clk 0:01:09]} 29. Kh1 {[%clk 0:01:54]}  h4 {[%clk 0:01:06]} 30. h3 {[%clk 0:01:54]}  Ka7 {[%clk 0:01:02]} 31. Nd2 {[%clk 0:01:54]}  Rc7 {[%clk 0:00:57]} 32. a4 {[%clk 0:01:54]}  a5 {[%clk 0:00:53]} 33. Rab1 {[%clk 0:01:52]}  Rhc8 {[%clk 0:00:49]} 34. Rb5 {[%clk 0:01:48]}  Bxd4 {[%clk 0:00:40]} 35. cxd4 {[%clk 0:01:26]}  Rxc1+ {[%clk 0:00:39]} 36. Kh2 {[%clk 0:01:27]}  Qc6 {[%clk 0:00:31]} 37. d5+ {[%clk 0:01:25]} 1-0


[Site "https://www.chess.com"]

[Event "Titled Tuesday Blitz April 4 Late 2023"]
[White "Tsyhanchuk, Stanislav"]
[Black "Kovalevsky, Stanislav"]
[WhiteFideId "13505130"]
[BlackFideId "13508598"]
[WhiteElo "2173"]
[BlackElo "2174"]
[Result "1/2-1/2"]
[Round "08"]
[TimeControl "180+2"]
[Date "2023.04.04"]
[WhiteClock "0:01:11"]
[BlackClock "0:01:29"]

1. c4 {[%clk 0:03:00]}  e6 {[%clk 0:03:00]} 2. Nc3 {[%clk 0:03:00]}  d5 {[%clk 0:03:01]} 3. e3 {[%clk 0:03:01]}  Nf6 {[%clk 0:03:01]} 4. Nf3 {[%clk 0:03:01]}  Nbd7 {[%clk 0:03:02]} 5. b3 {[%clk 0:02:59]}  Bd6 {[%clk 0:03:00]} 6. Bb2 {[%clk 0:02:56]}  O-O {[%clk 0:03:00]} 7. d4 {[%clk 0:02:52]}  dxc4 {[%clk 0:02:55]} 8. bxc4 {[%clk 0:02:52]}  e5 {[%clk 0:02:55]} 9. Be2 {[%clk 0:02:49]}  exd4 {[%clk 0:02:49]} 10. exd4 {[%clk 0:02:50]}  Re8 {[%clk 0:02:47]} 11. O-O {[%clk 0:02:50]}  Nf8 {[%clk 0:02:44]} 12. Bd3 {[%clk 0:02:47]}  c6 {[%clk 0:02:41]} 13. Re1 {[%clk 0:02:40]}  Ng6 {[%clk 0:02:35]} 14. Rxe8+ {[%clk 0:02:27]}  Qxe8 {[%clk 0:02:36]} 15. Bxg6 {[%clk 0:02:23]}  hxg6 {[%clk 0:02:36]} 16. Qd2 {[%clk 0:02:22]}  Bg4 {[%clk 0:02:09]} 17. Re1 {[%clk 0:02:19]}  Qd7 {[%clk 0:02:08]} 18. Ne5 {[%clk 0:02:09]}  Bxe5 {[%clk 0:02:09]} 19. Rxe5 {[%clk 0:02:10]}  Re8 {[%clk 0:02:09]} 20. Rxe8+ {[%clk 0:02:04]}  Qxe8 {[%clk 0:02:05]} 21. Qe3 {[%clk 0:02:03]}  Qxe3 {[%clk 0:01:54]} 22. fxe3 {[%clk 0:02:04]}  Be6 {[%clk 0:01:53]} 23. d5 {[%clk 0:01:38]}  cxd5 {[%clk 0:01:52]} 24. cxd5 {[%clk 0:01:38]}  Nxd5 {[%clk 0:01:52]} 25. Nxd5 {[%clk 0:01:37]}  Bxd5 {[%clk 0:01:53]} 26. a3 {[%clk 0:01:36]}  f6 {[%clk 0:01:48]} 27. Bd4 {[%clk 0:01:36]}  a6 {[%clk 0:01:48]} 28. g3 {[%clk 0:01:35]}  Kf7 {[%clk 0:01:48]} 29. Bb6 {[%clk 0:01:31]}  Ke6 {[%clk 0:01:47]} 30. a4 {[%clk 0:01:31]}  Bb3 {[%clk 0:01:45]} 31. a5 {[%clk 0:01:31]}  g5 {[%clk 0:01:45]} 32. Kf2 {[%clk 0:01:28]}  g4 {[%clk 0:01:44]} 33. e4 {[%clk 0:01:24]}  g6 {[%clk 0:01:37]} 34. Ke3 {[%clk 0:01:24]}  f5 {[%clk 0:01:36]} 35. exf5+ {[%clk 0:01:24]}  gxf5 {[%clk 0:01:33]} 36. Kf4 {[%clk 0:01:24]}  Bc2 {[%clk 0:01:30]} 37. Bd8 {[%clk 0:01:17]}  Kd5 {[%clk 0:01:29]} 38. Bb6 {[%clk 0:01:16]}  Kc4 {[%clk 0:01:29]} 39. Kg5 {[%clk 0:01:12]}  Kd3 {[%clk 0:01:29]} 40. Kh4 {[%clk 0:01:11]}  Ke2 {[%clk 0:01:29]} 41. h3 {[%clk 0:01:11]} 1/2-1/2


[Site "https://www.chess.com"]

[Event "Titled Tuesday Blitz April 4 Late 2023"]
[White "Martin Barcelo, Carles"]
[Black "Osmonbekov, Talaibek"]
[WhiteFideId "24561444"]
[BlackFideId "2017253"]
[WhiteElo "2089"]
[BlackElo "2135"]
[Result "1-0"]
[Round "08"]
[TimeControl "180+2"]
[Date "2023.04.04"]
[WhiteClock "0:01:12"]
[BlackClock "0:00:03"]

1. d4 {[%clk 0:03:00]}  e6 {[%clk 0:02:59]} 2. Nf3 {[%clk 0:03:01]}  f5 {[%clk 0:02:59]} 3. Nbd2 {[%clk 0:02:55]}  Nf6 {[%clk 0:03:00]} 4. g3 {[%clk 0:02:54]}  b6 {[%clk 0:02:57]} 5. Bg2 {[%clk 0:02:54]}  Bb7 {[%clk 0:02:58]} 6. O-O {[%clk 0:02:55]}  Be7 {[%clk 0:02:55]} 7. b3 {[%clk 0:02:49]}  O-O {[%clk 0:02:55]} 8. Bb2 {[%clk 0:02:50]}  a5 {[%clk 0:02:55]} 9. a4 {[%clk 0:02:49]}  Na6 {[%clk 0:02:54]} 10. Re1 {[%clk 0:02:46]}  Qe8 {[%clk 0:02:41]} 11. Ne5 {[%clk 0:02:41]}  Bxg2 {[%clk 0:02:40]} 12. Kxg2 {[%clk 0:02:41]}  d6 {[%clk 0:02:33]} 13. Nd3 {[%clk 0:02:39]}  Nb4 {[%clk 0:01:35]} 14. Nxb4 {[%clk 0:02:34]}  axb4 {[%clk 0:01:36]} 15. e3 {[%clk 0:02:33]}  Qg6 {[%clk 0:01:10]} 16. Qf3 {[%clk 0:02:25]}  Qh6 {[%clk 0:01:00]} 17. Rac1 {[%clk 0:02:17]}  g5 {[%clk 0:00:51]} 18. e4 {[%clk 0:02:04]}  g4 {[%clk 0:00:32]} 19. Qe3 {[%clk 0:01:53]}  Qh3+ {[%clk 0:00:30]} 20. Kg1 {[%clk 0:01:53]}  fxe4 {[%clk 0:00:28]} 21. Nxe4 {[%clk 0:01:52]}  Nd5 {[%clk 0:00:28]} 22. Qe2 {[%clk 0:01:48]}  Rf5 {[%clk 0:00:23]} 23. Qf1 {[%clk 0:01:44]}  Qh6 {[%clk 0:00:18]} 24. Qg2 {[%clk 0:01:42]}  Raf8 {[%clk 0:00:15]} 25. Re2 {[%clk 0:01:40]}  Rf3 {[%clk 0:00:14]} 26. Rce1 {[%clk 0:01:38]}  R8f5 {[%clk 0:00:12]} 27. Nd2 {[%clk 0:01:34]}  Qf8 {[%clk 0:00:12]} 28. Ne4 {[%clk 0:01:24]}  Bd8 {[%clk 0:00:04]} 29. Qf1 {[%clk 0:01:19]}  h5 {[%clk 0:00:03]} 30. h4 {[%clk 0:01:12]} 1-0


[Site "https://www.chess.com"]

[Event "Titled Tuesday Blitz April 4 Late 2023"]
[White "Popov, Mikhail"]
[Black "Vifleemskaia, Svetlana"]
[WhiteFideId "4146182"]
[BlackFideId "4129490"]
[WhiteElo "2244"]
[BlackElo "1930"]
[Result "1-0"]
[Round "08"]
[TimeControl "180+2"]
[Date "2023.04.04"]
[WhiteClock "0:00:11"]
[BlackClock "0:00:18"]

1. d4 {[%clk 0:03:00]}  Nf6 {[%clk 0:02:59]} 2. Nf3 {[%clk 0:02:58]}  d5 {[%clk 0:02:59]} 3. c4 {[%clk 0:02:57]}  dxc4 {[%clk 0:02:59]} 4. Nc3 {[%clk 0:02:57]}  a6 {[%clk 0:02:59]} 5. e4 {[%clk 0:02:57]}  b5 {[%clk 0:02:59]} 6. e5 {[%clk 0:02:56]}  Nd5 {[%clk 0:02:58]} 7. a4 {[%clk 0:02:57]}  Nxc3 {[%clk 0:02:55]} 8. bxc3 {[%clk 0:02:57]}  Bb7 {[%clk 0:02:56]} 9. e6 {[%clk 0:02:57]}  fxe6 {[%clk 0:02:50]} 10. Be2 {[%clk 0:02:53]}  g6 {[%clk 0:02:49]} 11. Ng5 {[%clk 0:02:45]}  Qd6 {[%clk 0:02:36]} 12. Bf3 {[%clk 0:02:38]}  Bd5 {[%clk 0:02:35]} 13. axb5 {[%clk 0:02:34]}  Bg7 {[%clk 0:02:30]} 14. Qe2 {[%clk 0:02:23]}  e5 {[%clk 0:02:19]} 15. Ba3 {[%clk 0:01:30]}  Qd7 {[%clk 0:02:16]} 16. dxe5 {[%clk 0:01:24]}  axb5 {[%clk 0:02:13]} 17. O-O {[%clk 0:01:23]}  O-O {[%clk 0:02:11]} 18. e6 {[%clk 0:01:16]}  Bxf3 {[%clk 0:02:04]} 19. Qxf3 {[%clk 0:00:50]}  Qc6 {[%clk 0:01:56]} 20. Qh3 {[%clk 0:00:45]}  h6 {[%clk 0:01:47]} 21. Nf7 {[%clk 0:00:44]}  Rxf7 {[%clk 0:01:29]} 22. exf7+ {[%clk 0:00:43]}  Kxf7 {[%clk 0:01:30]} 23. Bb4 {[%clk 0:00:36]}  Rxa1 {[%clk 0:01:26]} 24. Rxa1 {[%clk 0:00:37]}  Nd7 {[%clk 0:01:26]} 25. Re1 {[%clk 0:00:30]}  e6 {[%clk 0:01:14]} 26. Qg3 {[%clk 0:00:29]}  e5 {[%clk 0:01:03]} 27. h4 {[%clk 0:00:28]}  Nb6 {[%clk 0:00:55]} 28. Rd1 {[%clk 0:00:26]}  Nd5 {[%clk 0:00:54]} 29. Qf3+ {[%clk 0:00:26]}  Ke6 {[%clk 0:00:50]} 30. Qe4 {[%clk 0:00:22]}  Ne7 {[%clk 0:00:47]} 31. Qg4+ {[%clk 0:00:20]}  Kf7 {[%clk 0:00:46]} 32. Rd7 {[%clk 0:00:15]}  Bf6 {[%clk 0:00:44]} 33. h5 {[%clk 0:00:15]}  g5 {[%clk 0:00:32]} 34. Bxe7 {[%clk 0:00:14]}  Bxe7 {[%clk 0:00:29]} 35. Qf5+ {[%clk 0:00:14]}  Qf6 {[%clk 0:00:25]} 36. Qh7+ {[%clk 0:00:11]}  Ke6 {[%clk 0:00:25]} 37. Rxc7 {[%clk 0:00:10]}  Bd6 {[%clk 0:00:22]} 38. Qd7+ {[%clk 0:00:09]}  Kd5 {[%clk 0:00:20]} 39. Qxb5+ {[%clk 0:00:10]}  Ke6 {[%clk 0:00:19]} 40. Qxc4+ {[%clk 0:00:11]}  Kf5 {[%clk 0:00:18]} 41. g4# {[%clk 0:00:11]} 1-0


[Site "https://www.chess.com"]

[Event "Titled Tuesday Blitz April 4 Late 2023"]
[White "Schuster, Karsten"]
[Black "Gubajdullin, Alexei"]
[WhiteFideId "4611071"]
[BlackFideId "4141202"]
[WhiteElo "2294"]
[BlackElo "2279"]
[Result "1/2-1/2"]
[Round "08"]
[TimeControl "180+2"]
[Date "2023.04.04"]
[WhiteClock "0:00:27"]
[BlackClock "0:01:18"]

1. d4 {[%clk 0:02:55]}  Nf6 {[%clk 0:02:59]} 2. c4 {[%clk 0:02:55]}  c5 {[%clk 0:02:59]} 3. d5 {[%clk 0:02:54]}  e6 {[%clk 0:03:00]} 4. Nc3 {[%clk 0:02:53]}  exd5 {[%clk 0:03:00]} 5. cxd5 {[%clk 0:02:54]}  d6 {[%clk 0:03:00]} 6. e4 {[%clk 0:02:55]}  g6 {[%clk 0:03:00]} 7. f4 {[%clk 0:02:55]}  Bg7 {[%clk 0:03:00]} 8. Bb5+ {[%clk 0:02:55]}  Nfd7 {[%clk 0:02:58]} 9. a4 {[%clk 0:02:54]}  O-O {[%clk 0:02:58]} 10. Nf3 {[%clk 0:02:54]}  a6 {[%clk 0:02:58]} 11. Bc4 {[%clk 0:02:53]}  Re8 {[%clk 0:02:52]} 12. O-O {[%clk 0:02:53]}  Nf8 {[%clk 0:02:51]} 13. Re1 {[%clk 0:02:53]}  Nbd7 {[%clk 0:02:51]} 14. Bd2 {[%clk 0:02:49]}  b5 {[%clk 0:02:51]} 15. axb5 {[%clk 0:02:48]}  Nb6 {[%clk 0:02:51]} 16. Bf1 {[%clk 0:02:47]}  axb5 {[%clk 0:02:51]} 17. Rxa8 {[%clk 0:02:46]}  Nxa8 {[%clk 0:02:50]} 18. Bxb5 {[%clk 0:02:46]}  Bd7 {[%clk 0:02:48]} 19. Bf1 {[%clk 0:02:43]}  Qb6 {[%clk 0:02:47]} 20. Qc2 {[%clk 0:02:41]}  Rb8 {[%clk 0:02:47]} 21. Nd1 {[%clk 0:02:38]}  Bb5 {[%clk 0:02:42]} 22. Bc3 {[%clk 0:02:37]}  Bxf1 {[%clk 0:02:41]} 23. Rxf1 {[%clk 0:02:36]}  Bxc3 {[%clk 0:02:38]} 24. bxc3 {[%clk 0:02:34]}  c4+ {[%clk 0:02:38]} 25. Nd4 {[%clk 0:02:33]}  Nd7 {[%clk 0:02:37]} 26. Kh1 {[%clk 0:02:32]}  Nc5 {[%clk 0:02:37]} 27. Ne3 {[%clk 0:02:27]}  Qa6 {[%clk 0:02:37]} 28. Nc6 {[%clk 0:02:24]}  Re8 {[%clk 0:02:36]} 29. e5 {[%clk 0:02:21]}  Nb6 {[%clk 0:02:36]} 30. Ng4 {[%clk 0:02:14]}  Nxd5 {[%clk 0:02:34]} 31. Qd2 {[%clk 0:02:10]}  Qxc6 {[%clk 0:02:32]} 32. Qxd5 {[%clk 0:02:10]}  Qxd5 {[%clk 0:02:33]} 33. Nf6+ {[%clk 0:02:10]}  Kg7 {[%clk 0:02:33]} 34. Nxd5 {[%clk 0:02:11]}  dxe5 {[%clk 0:02:34]} 35. fxe5 {[%clk 0:02:10]}  Rxe5 {[%clk 0:02:33]} 36. Nb6 {[%clk 0:02:10]}  Re4 {[%clk 0:02:30]} 37. h3 {[%clk 0:02:09]}  Nd3 {[%clk 0:02:22]} 38. Ra1 {[%clk 0:02:03]}  Ne5 {[%clk 0:02:21]} 39. Ra7 {[%clk 0:01:56]}  Re3 {[%clk 0:02:19]} 40. Nd5 {[%clk 0:01:56]}  Rd3 {[%clk 0:02:18]} 41. Nf4 {[%clk 0:01:46]}  Rxc3 {[%clk 0:02:16]} 42. Ne6+ {[%clk 0:01:47]}  Kf6 {[%clk 0:02:16]} 43. Nd8 {[%clk 0:01:45]}  Rc1+ {[%clk 0:02:14]} 44. Kh2 {[%clk 0:01:44]}  c3 {[%clk 0:02:15]} 45. Ra6+ {[%clk 0:01:43]}  Kg7 {[%clk 0:02:14]} 46. Nc6 {[%clk 0:01:41]}  c2 {[%clk 0:02:10]} 47. Nxe5 {[%clk 0:01:36]}  Rg1 {[%clk 0:02:08]} 48. Nd3 {[%clk 0:01:30]}  Rd1 {[%clk 0:02:06]} 49. Rc6 {[%clk 0:01:29]}  Rxd3 {[%clk 0:02:05]} 50. Rxc2 {[%clk 0:01:29]}  h5 {[%clk 0:02:04]} 51. h4 {[%clk 0:01:28]}  Rd4 {[%clk 0:02:04]} 52. g3 {[%clk 0:01:28]}  Kf6 {[%clk 0:02:03]} 53. Rc5 {[%clk 0:01:25]}  Re4 {[%clk 0:02:02]} 54. Kg2 {[%clk 0:01:25]}  Re5 {[%clk 0:02:02]} 55. Rc7 {[%clk 0:01:24]}  Re7 {[%clk 0:02:00]} 56. Rc6+ {[%clk 0:01:24]}  Kf5 {[%clk 0:02:00]} 57. Kf3 {[%clk 0:01:23]}  Re5 {[%clk 0:02:00]} 58. Rc7 {[%clk 0:01:23]}  f6 {[%clk 0:01:59]} 59. Rc4 {[%clk 0:01:21]}  Ra5 {[%clk 0:02:00]} 60. Rf4+ {[%clk 0:01:21]}  Ke5 {[%clk 0:01:59]} 61. Re4+ {[%clk 0:01:21]}  Kd5 {[%clk 0:02:00]} 62. Re3 {[%clk 0:01:21]}  Rc5 {[%clk 0:01:59]} 63. Ra3 {[%clk 0:01:17]}  Kd4 {[%clk 0:01:58]} 64. Ra6 {[%clk 0:01:17]}  Ke5 {[%clk 0:01:57]} 65. Ra3 {[%clk 0:01:15]}  Kf5 {[%clk 0:01:56]} 66. Rb3 {[%clk 0:01:14]}  Ke5 {[%clk 0:01:56]} 67. Ra3 {[%clk 0:01:14]}  Kd4 {[%clk 0:01:56]} 68. Ra6 {[%clk 0:01:11]}  Rf5+ {[%clk 0:01:56]} 69. Kg2 {[%clk 0:01:10]}  Ke3 {[%clk 0:01:55]} 70. Re6+ {[%clk 0:01:10]}  Kd4 {[%clk 0:01:54]} 71. Kg1 {[%clk 0:01:08]}  Kd5 {[%clk 0:01:53]} 72. Re3 {[%clk 0:01:07]}  Re5 {[%clk 0:01:52]} 73. Rf3 {[%clk 0:01:06]}  f5 {[%clk 0:01:52]} 74. Ra3 {[%clk 0:01:05]}  Re6 {[%clk 0:01:51]} 75. Kf2 {[%clk 0:01:03]}  Ke4 {[%clk 0:01:50]} 76. Ra4+ {[%clk 0:01:02]}  Ke5 {[%clk 0:01:50]} 77. Ra5+ {[%clk 0:01:02]}  Kf6 {[%clk 0:01:50]} 78. Kf3 {[%clk 0:01:02]}  Rb6 {[%clk 0:01:50]} 79. Ra3 {[%clk 0:01:01]}  g5 {[%clk 0:01:49]} 80. hxg5+ {[%clk 0:01:00]}  Kxg5 {[%clk 0:01:50]} 81. Rc3 {[%clk 0:01:00]}  Ra6 {[%clk 0:01:49]} 82. Rb3 {[%clk 0:01:00]}  Ra1 {[%clk 0:01:49]} 83. Rc3 {[%clk 0:00:59]}  Rb1 {[%clk 0:01:48]} 84. Ra3 {[%clk 0:00:59]}  Rd1 {[%clk 0:01:46]} 85. Rb3 {[%clk 0:00:59]}  Kf6 {[%clk 0:01:46]} 86. Ra3 {[%clk 0:00:58]}  Ke5 {[%clk 0:01:46]} 87. Ra5+ {[%clk 0:00:58]}  Rd5 {[%clk 0:01:46]} 88. Ra3 {[%clk 0:00:57]}  Rc5 {[%clk 0:01:46]} 89. Rb3 {[%clk 0:00:56]}  Rc1 {[%clk 0:01:43]} 90. Ra3 {[%clk 0:00:55]}  Rf1+ {[%clk 0:01:42]} 91. Kg2 {[%clk 0:00:54]}  Rd1 {[%clk 0:01:41]} 92. Kf3 {[%clk 0:00:54]}  Rd2 {[%clk 0:01:41]} 93. Ra5+ {[%clk 0:00:54]}  Rd5 {[%clk 0:01:41]} 94. Ra3 {[%clk 0:00:53]}  Kf6 {[%clk 0:01:41]} 95. Ra6+ {[%clk 0:00:52]}  Kg5 {[%clk 0:01:41]} 96. Ra3 {[%clk 0:00:52]}  Rc5 {[%clk 0:01:40]} 97. Rb3 {[%clk 0:00:53]}  Ra5 {[%clk 0:01:40]} 98. Rc3 {[%clk 0:00:53]}  Ra1 {[%clk 0:01:40]} 99. Rb3 {[%clk 0:00:53]}  Rf1+ {[%clk 0:01:39]} 100. Kg2 {[%clk 0:00:52]}  Rc1 {[%clk 0:01:39]} 101. Kf3 {[%clk 0:00:52]}  Rh1 {[%clk 0:01:36]} 102. Ra3 {[%clk 0:00:51]}  Kf6 {[%clk 0:01:31]} 103. Ra6+ {[%clk 0:00:50]}  Ke5 {[%clk 0:01:31]} 104. Ra5+ {[%clk 0:00:50]}  Kf6 {[%clk 0:01:30]} 105. Ra6+ {[%clk 0:00:50]}  Kg5 {[%clk 0:01:30]} 106. Ra3 {[%clk 0:00:50]}  Rf1+ {[%clk 0:01:27]} 107. Kg2 {[%clk 0:00:50]}  Rb1 {[%clk 0:01:27]} 108. Kf3 {[%clk 0:00:50]}  Rb5 {[%clk 0:01:27]} 109. Rc3 {[%clk 0:00:49]}  Rb4 {[%clk 0:01:26]} 110. Ra3 {[%clk 0:00:48]}  h4 {[%clk 0:01:26]} 111. gxh4+ {[%clk 0:00:48]}  Rxh4 {[%clk 0:01:26]} 112. Ra8 {[%clk 0:00:47]}  Rh3+ {[%clk 0:01:24]} 113. Kg2 {[%clk 0:00:47]}  Rd3 {[%clk 0:01:24]} 114. Ra4 {[%clk 0:00:45]}  Rd5 {[%clk 0:01:23]} 115. Kf3 {[%clk 0:00:44]}  Kf6 {[%clk 0:01:23]} 116. Ra3 {[%clk 0:00:43]}  Ke5 {[%clk 0:01:22]} 117. Re3+ {[%clk 0:00:43]}  Kf6 {[%clk 0:01:22]} 118. Ra3 {[%clk 0:00:43]}  Kg5 {[%clk 0:01:23]} 119. Rb3 {[%clk 0:00:43]}  Rd1 {[%clk 0:01:22]} 120. Ra3 {[%clk 0:00:43]}  Rg1 {[%clk 0:01:19]} 121. Rb3 {[%clk 0:00:42]}  Rg4 {[%clk 0:01:18]} 122. Ra3 {[%clk 0:00:41]}  Rh4 {[%clk 0:01:18]} 123. Ra8 {[%clk 0:00:38]}  Rh3+ {[%clk 0:01:18]} 124. Kg2 {[%clk 0:00:38]}  Rb3 {[%clk 0:01:18]} 125. Ra4 {[%clk 0:00:37]}  Rc3 {[%clk 0:01:16]} 126. Rb4 {[%clk 0:00:36]}  Rd3 {[%clk 0:01:16]} 127. Ra4 {[%clk 0:00:36]}  Rb3 {[%clk 0:01:16]} 128. Rc4 {[%clk 0:00:36]}  Ra3 {[%clk 0:01:15]} 129. Rb4 {[%clk 0:00:36]}  Rd3 {[%clk 0:01:15]} 130. Rc4 {[%clk 0:00:36]}  Rd2+ {[%clk 0:01:14]} 131. Kg3 {[%clk 0:00:35]}  Rd3+ {[%clk 0:01:14]} 132. Kg2 {[%clk 0:00:35]}  Re3 {[%clk 0:01:14]} 133. Ra4 {[%clk 0:00:34]}  Re4 {[%clk 0:01:13]} 134. Rxe4 {[%clk 0:00:31]}  fxe4 {[%clk 0:01:13]} 135. Kf2 {[%clk 0:00:31]}  Kf4 {[%clk 0:01:14]} 136. Ke2 {[%clk 0:00:31]}  e3 {[%clk 0:01:15]} 137. Ke1 {[%clk 0:00:31]}  Ke4 {[%clk 0:01:14]} 138. Ke2 {[%clk 0:00:32]}  Kd4 {[%clk 0:01:15]} 139. Ke1 {[%clk 0:00:32]}  Kd3 {[%clk 0:01:15]} 140. Kd1 {[%clk 0:00:32]}  Ke4 {[%clk 0:01:16]} 141. Ke2 {[%clk 0:00:32]}  Kf4 {[%clk 0:01:16]} 142. Ke1 {[%clk 0:00:27]}  Kf3 {[%clk 0:01:17]} 143. Kf1 {[%clk 0:00:27]}  Ke4 {[%clk 0:01:18]} 144. Ke2 {[%clk 0:00:27]} 1/2-1/2


[Site "https://www.chess.com"]

[Event "Titled Tuesday Blitz April 4 Late 2023"]
[White "Bacallao Alonso, Yusnel"]
[Black "Ai, Evan"]
[WhiteFideId "3507416"]
[BlackFideId "2094770"]
[WhiteElo "2561"]
[BlackElo "1963"]
[Result "1-0"]
[Round "08"]
[TimeControl "180+2"]
[Date "2023.04.04"]
[WhiteClock "0:00:06"]
[BlackClock "0:00:02"]

1. d4 {[%clk 0:03:00]}  Nf6 {[%clk 0:03:00]} 2. c4 {[%clk 0:03:00]}  e6 {[%clk 0:03:00]} 3. Nf3 {[%clk 0:03:00]}  b6 {[%clk 0:03:00]} 4. g3 {[%clk 0:03:00]}  Bb7 {[%clk 0:03:00]} 5. Bg2 {[%clk 0:03:00]}  Be7 {[%clk 0:02:59]} 6. O-O {[%clk 0:03:01]}  O-O {[%clk 0:02:59]} 7. d5 {[%clk 0:03:00]}  exd5 {[%clk 0:02:58]} 8. Nh4 {[%clk 0:03:01]}  Ne4 {[%clk 0:02:53]} 9. cxd5 {[%clk 0:02:58]}  Bxh4 {[%clk 0:02:49]} 10. Bxe4 {[%clk 0:02:58]}  Bf6 {[%clk 0:02:47]} 11. Qc2 {[%clk 0:02:58]}  g6 {[%clk 0:02:46]} 12. Bg2 {[%clk 0:02:55]}  Na6 {[%clk 0:02:43]} 13. Nd2 {[%clk 0:02:47]}  c5 {[%clk 0:02:29]} 14. Ne4 {[%clk 0:02:12]}  d6 {[%clk 0:02:00]} 15. Bf4 {[%clk 0:02:03]}  Nb4 {[%clk 0:01:57]} 16. Qd2 {[%clk 0:01:59]}  Be7 {[%clk 0:01:35]} 17. Nc3 {[%clk 0:01:57]}  Bf6 {[%clk 0:01:25]} 18. a3 {[%clk 0:01:52]}  Na6 {[%clk 0:01:25]} 19. Ne4 {[%clk 0:01:51]}  Be5 {[%clk 0:01:20]} 20. Bxe5 {[%clk 0:01:46]}  dxe5 {[%clk 0:01:21]} 21. d6 {[%clk 0:01:24]}  f5 {[%clk 0:01:05]} 22. Nf6+ {[%clk 0:01:20]}  Rxf6 {[%clk 0:00:58]} 23. Bxb7 {[%clk 0:01:21]}  Rxd6 {[%clk 0:00:58]} 24. Qc3 {[%clk 0:01:07]}  Nc7 {[%clk 0:00:50]} 25. Bxa8 {[%clk 0:01:06]}  Qxa8 {[%clk 0:00:51]} 26. Qxe5 {[%clk 0:01:04]}  Qd8 {[%clk 0:00:47]} 27. b4 {[%clk 0:00:32]}  c4 {[%clk 0:00:20]} 28. a4 {[%clk 0:00:30]}  Re6 {[%clk 0:00:12]} 29. Qc3 {[%clk 0:00:29]}  Rc6 {[%clk 0:00:10]} 30. Rad1 {[%clk 0:00:28]}  Qe7 {[%clk 0:00:09]} 31. b5 {[%clk 0:00:27]}  Rc5 {[%clk 0:00:09]} 32. Rd4 {[%clk 0:00:16]}  Nd5 {[%clk 0:00:09]} 33. Qc2 {[%clk 0:00:14]}  Nb4 {[%clk 0:00:05]} 34. Qb1 {[%clk 0:00:13]}  Nd5 {[%clk 0:00:05]} 35. Qc1 {[%clk 0:00:07]}  c3 {[%clk 0:00:05]} 36. Rfd1 {[%clk 0:00:06]}  c2 {[%clk 0:00:03]} 37. R1d2 {[%clk 0:00:06]}  Nc3 {[%clk 0:00:04]} 38. Qxc2 {[%clk 0:00:05]}  Nxe2+ {[%clk 0:00:03]} 39. Rxe2 {[%clk 0:00:05]}  Qf6 {[%clk 0:00:02]} 40. Qa2+ {[%clk 0:00:05]}  Kg7 {[%clk 0:00:02]} 41. Qd2 {[%clk 0:00:06]} 1-0


[Site "https://www.chess.com"]

[Event "Titled Tuesday Blitz April 4 Late 2023"]
[White "Rios Escobar, Adan"]
[Black "lluiss"]
[WhiteFideId "3403645"]
[WhiteElo "2463"]
[BlackElo "2260"]
[Result "1-0"]
[Round "08"]
[TimeControl "180+2"]
[Date "2023.04.04"]
[WhiteClock "0:00:49"]
[BlackClock "0:00:50"]

1. d4 {[%clk 0:02:55]}  Nf6 {[%clk 0:02:59]} 2. g3 {[%clk 0:02:54]}  g6 {[%clk 0:02:55]} 3. Bg2 {[%clk 0:02:53]}  d5 {[%clk 0:02:55]} 4. Nf3 {[%clk 0:02:51]}  Bg7 {[%clk 0:02:55]} 5. O-O {[%clk 0:02:42]}  O-O {[%clk 0:02:55]} 6. Be3 {[%clk 0:02:36]}  Ng4 {[%clk 0:02:45]} 7. Bf4 {[%clk 0:02:35]}  c5 {[%clk 0:02:35]} 8. h3 {[%clk 0:02:30]}  Nf6 {[%clk 0:02:35]} 9. dxc5 {[%clk 0:02:29]}  Ne4 {[%clk 0:02:33]} 10. Nc3 {[%clk 0:02:14]}  Nxc3 {[%clk 0:02:22]} 11. bxc3 {[%clk 0:02:15]}  Nc6 {[%clk 0:02:14]} 12. Nd4 {[%clk 0:02:07]}  e6 {[%clk 0:01:46]} 13. Bd6 {[%clk 0:02:06]}  Re8 {[%clk 0:01:42]} 14. Rb1 {[%clk 0:02:02]}  Qa5 {[%clk 0:01:42]} 15. Nb5 {[%clk 0:01:54]}  b6 {[%clk 0:01:14]} 16. Nc7 {[%clk 0:01:50]}  Ba6 {[%clk 0:01:14]} 17. Nxa8 {[%clk 0:01:48]}  Rxa8 {[%clk 0:01:11]} 18. cxb6 {[%clk 0:01:43]}  axb6 {[%clk 0:01:10]} 19. Bc7 {[%clk 0:01:41]}  Bc4 {[%clk 0:01:07]} 20. Rxb6 {[%clk 0:01:31]}  Qxc3 {[%clk 0:01:06]} 21. Rxc6 {[%clk 0:01:17]}  Bd4 {[%clk 0:00:59]} 22. e3 {[%clk 0:01:05]}  Ba7 {[%clk 0:00:52]} 23. Qe1 {[%clk 0:00:51]}  Qa3 {[%clk 0:00:50]} 24. Rxc4 {[%clk 0:00:49]} 1-0


[Site "https://www.chess.com"]